[Event "Early-Titled-Tuesday-Blitz-April-02-2024"]
[Site "Chess.com"]
[Date "2024.04.02"]
[Round "1"]
[White "Darkdefense15"]
[Black "sebsep"]
[Result "1-0"]
[WhiteElo "2314"]
[BlackElo "2604"]
[TimeControl "180+1"]
[EndTime "8:09:01 PDT"]
[Termination "Darkdefense15 won by resignation"]

1. d4 {[%clk 0:03:00.9]} 1... Nf6 {[%clk 0:02:59.8]} 2. Bf4 {[%clk 0:03:00.8]}
2... g6 {[%clk 0:02:59.9]} 3. Nc3 {[%clk 0:03:01.1]} 3... d5 {[%clk 0:03:00.6]}
4. e3 {[%clk 0:03:01.4]} 4... Bg7 {[%clk 0:03:00.8]} 5. h4 {[%clk 0:03:01.6]}
5... h5 {[%clk 0:03:00.6]} 6. Nf3 {[%clk 0:02:57.1]} 6... O-O {[%clk 0:02:59.6]}
7. Nb5 {[%clk 0:02:57.4]} 7... Na6 {[%clk 0:02:59.4]} 8. Qd2 {[%clk 0:02:56.5]}
8... Ne4 {[%clk 0:02:53.4]} 9. Qd1 {[%clk 0:02:50.4]} 9... c6 {[%clk 0:02:53]}
10. Nc3 {[%clk 0:02:50.5]} 10... Nxc3 {[%clk 0:02:39.1]} 11. bxc3 {[%clk
0:02:51.4]} 11... b5 {[%clk 0:02:39.6]} 12. Bd3 {[%clk 0:02:40.8]} 12... Nc7
{[%clk 0:02:31.8]} 13. a4 {[%clk 0:02:37.2]} 13... a6 {[%clk 0:02:27.8]} 14. O-O
{[%clk 0:02:34.5]} 14... Bg4 {[%clk 0:02:27.1]} 15. e4 {[%clk 0:02:22.5]} 15...
dxe4 {[%clk 0:02:20]} 16. Bxc7 {[%clk 0:02:17.8]} 16... Qxc7 {[%clk 0:02:18.2]}
17. Bxe4 {[%clk 0:02:18]} 17... Rac8 {[%clk 0:01:48.6]} 18. axb5 {[%clk
0:01:59.6]} 18... axb5 {[%clk 0:01:49.5]} 19. Qe2 {[%clk 0:01:59.5]} 19... Bf6
{[%clk 0:01:45.1]} 20. Ra6 {[%clk 0:01:52.4]} 20... Qb7 {[%clk 0:01:39.8]} 21.
Rfa1 {[%clk 0:01:48.5]} 21... Bxh4 {[%clk 0:01:36.3]} 22. Qd3 {[%clk 0:01:33.9]}
22... Bf6 {[%clk 0:01:34.6]} 23. Ra7 {[%clk 0:01:05.4]} 23... Qb8 {[%clk
0:01:28.9]} 24. Bxg6 {[%clk 0:01:05.4]} 24... Qf4 {[%clk 0:01:22.4]} 25. Be4
{[%clk 0:00:48.6]} 25... c5 {[%clk 0:01:21.8]} 26. Nh2 {[%clk 0:00:43.7]} 26...
c4 {[%clk 0:01:16.8]} 27. Qe3 {[%clk 0:00:43.9]} 27... Qxe3 {[%clk 0:01:00]} 28.
fxe3 {[%clk 0:00:44.8]} 28... Be6 {[%clk 0:01:00.4]} 29. Rb1 {[%clk 0:00:41.7]}
29... Rb8 {[%clk 0:00:59.5]} 30. Ra5 {[%clk 0:00:37.1]} 30... Bg5 {[%clk
0:00:53.6]} 31. Kf2 {[%clk 0:00:34.9]} 31... Bd7 {[%clk 0:00:50.8]} 32. Nf3
{[%clk 0:00:32.1]} 32... Bf6 {[%clk 0:00:50.7]} 33. Ra7 {[%clk 0:00:31.5]} 33...
Rfd8 {[%clk 0:00:47.1]} 34. Rh1 {[%clk 0:00:28.8]} 34... Bg4 {[%clk 0:00:41.6]}
35. Rb1 {[%clk 0:00:27.7]} 35... Rd6 {[%clk 0:00:38.3]} 36. Nd2 {[%clk
0:00:22.6]} 36... Rdb6 {[%clk 0:00:35.7]} 37. Ra8 {[%clk 0:00:22]} 37... Kg7
{[%clk 0:00:33.2]} 38. Rxb8 {[%clk 0:00:21.8]} 38... Rxb8 {[%clk 0:00:32.7]} 39.
Nxc4 {[%clk 0:00:22.5]} 39... Rc8 {[%clk 0:00:33.1]} 40. Nd2 {[%clk 0:00:19.2]}
40... Rxc3 {[%clk 0:00:33]} 41. Rxb5 {[%clk 0:00:19.5]} 41... Bg5 {[%clk
0:00:33.6]} 42. Nf1 {[%clk 0:00:19.3]} 42... f5 {[%clk 0:00:21.9]} 43. Bxf5
{[%clk 0:00:18.5]} 43... Bxf5 {[%clk 0:00:21.6]} 44. Rxf5 {[%clk 0:00:19.2]}
44... Rxc2+ {[%clk 0:00:21.8]} 45. Kf3 {[%clk 0:00:19.5]} 45... Kg6 {[%clk
0:00:22]} 46. Re5 {[%clk 0:00:17.2]} 46... Bf6 {[%clk 0:00:21.9]} 47. Re4 {[%clk
0:00:17.4]} 47... h4 {[%clk 0:00:21.3]} 48. Nh2 {[%clk 0:00:16.8]} 48... Rc1
{[%clk 0:00:21.5]} 49. Ng4 {[%clk 0:00:17.1]} 49... Bg5 {[%clk 0:00:21.8]} 50.
Re5 {[%clk 0:00:17.2]} 50... Rf1+ {[%clk 0:00:20.7]} 51. Nf2 {[%clk 0:00:17.4]}
51... Ra1 {[%clk 0:00:20]} 52. Nh3 {[%clk 0:00:17.5]} 52... Bf6 {[%clk 0:00:20]}
53. Re4 {[%clk 0:00:17.8]} 53... Rf1+ {[%clk 0:00:20.1]} 54. Ke2 {[%clk
0:00:18]} 54... Ra1 {[%clk 0:00:20.3]} 55. Rg4+ {[%clk 0:00:18.3]} 55... Kf5
{[%clk 0:00:20]} 56. Rg8 {[%clk 0:00:18.7]} 56... Ra2+ {[%clk 0:00:18.1]} 57.
Kf3 {[%clk 0:00:19.4]} 57... Ra1 {[%clk 0:00:18.4]} 58. e4+ {[%clk 0:00:20]}
58... Ke6 {[%clk 0:00:19]} 59. Rg4 {[%clk 0:00:19.7]} 59... Bxd4 {[%clk
0:00:17]} 60. Rxh4 {[%clk 0:00:19.7]} 60... Ra3+ {[%clk 0:00:17.6]} 61. Kg4
{[%clk 0:00:19.7]} 61... Be5 {[%clk 0:00:17.1]} 62. Rh6+ {[%clk 0:00:19.8]}
62... Kd7 {[%clk 0:00:17.2]} 63. Kf5 {[%clk 0:00:19.6]} 63... Bc7 {[%clk
0:00:16.8]} 64. Nf4 {[%clk 0:00:19.4]} 64... Ra5+ {[%clk 0:00:16.6]} 65. Kg4
{[%clk 0:00:19]} 65... Re5 {[%clk 0:00:16.2]} 66. Nd5 {[%clk 0:00:19.4]} 66...
Rxe4+ {[%clk 0:00:15.3]} 67. Kf3 {[%clk 0:00:20]} 67... Rd4 {[%clk 0:00:15.3]}
68. Nxc7 {[%clk 0:00:20.5]} 68... Kxc7 {[%clk 0:00:16.2]} 69. Re6 {[%clk
0:00:20.8]} 69... Kd7 {[%clk 0:00:16.5]} 70. Re3 {[%clk 0:00:21.1]} 70... Ra4
{[%clk 0:00:16.8]} 71. g4 {[%clk 0:00:21]} 71... Ke8 {[%clk 0:00:17.3]} 72. Re4
{[%clk 0:00:21.4]} 72... Ra3+ {[%clk 0:00:16.7]} 73. Kf4 {[%clk 0:00:22.1]}
73... Kf7 {[%clk 0:00:17.6]} 74. Re2 {[%clk 0:00:22]} 74... Ra4+ {[%clk
0:00:17.7]} 75. Re4 {[%clk 0:00:22.7]} 75... Ra1 {[%clk 0:00:18.2]} 76. Re2
{[%clk 0:00:22.9]} 76... Kf6 {[%clk 0:00:18.4]} 77. Re3 {[%clk 0:00:23.1]} 77...
Ra4+ {[%clk 0:00:18.3]} 78. Re4 {[%clk 0:00:23.1]} 78... Ra1 {[%clk 0:00:18.4]}
79. g5+ {[%clk 0:00:24]} 79... Kf7 {[%clk 0:00:18.4]} 80. Kf5 {[%clk 0:00:23.9]}
80... Ra5+ {[%clk 0:00:18.1]} 81. Kg4 {[%clk 0:00:24.1]} 81... e6 {[%clk
0:00:17.8]} 82. g6+ {[%clk 0:00:24.1]} 82... Kf6 {[%clk 0:00:16.7]} 83. Kh4
{[%clk 0:00:23.1]} 83... Ra7 {[%clk 0:00:15.2]} 84. Kh5 {[%clk 0:00:23]} 84...
Ra5+ {[%clk 0:00:14.9]} 85. Kh6 {[%clk 0:00:23.2]} 85... Ra1 {[%clk 0:00:14.5]}
86. Rh4 {[%clk 0:00:21.9]} 86... Ra7 {[%clk 0:00:13.5]} 87. Rf4+ {[%clk
0:00:21.4]} 87... Ke5 {[%clk 0:00:14]} 88. Rg4 {[%clk 0:00:21.3]} 88... Ra1
{[%clk 0:00:11.9]} 89. g7 {[%clk 0:00:21.5]} 89... Rh1+ {[%clk 0:00:11.7]} 90.
Kg6 {[%clk 0:00:22.1]} 1-0

[Event "Early-Titled-Tuesday-Blitz-April-02-2024"]
[Site "Chess.com"]
[Date "2024.04.02"]
[Round "1"]
[White "nekotyanof"]
[Black "MIss_MIaMI"]
[Result "1-0"]
[WhiteElo "2678"]
[BlackElo "2379"]
[TimeControl "180+1"]
[EndTime "8:09:03 PDT"]
[Termination "nekotyanof won by checkmate"]

1. e4 {[%clk 0:03:00.9]} 1... c5 {[%clk 0:02:48.2]} 2. Nf3 {[%clk 0:03:01]} 2...
e6 {[%clk 0:02:48.7]} 3. Nc3 {[%clk 0:02:59]} 3... a6 {[%clk 0:02:48.9]} 4. d4
{[%clk 0:02:58.8]} 4... cxd4 {[%clk 0:02:49.8]} 5. Nxd4 {[%clk 0:02:59.7]} 5...
Qc7 {[%clk 0:02:50.4]} 6. g3 {[%clk 0:03:00]} 6... Bb4 {[%clk 0:02:51]} 7. Bd2
{[%clk 0:02:59.4]} 7... Nf6 {[%clk 0:02:51.5]} 8. Bg2 {[%clk 0:02:59.6]} 8...
O-O {[%clk 0:02:52]} 9. O-O {[%clk 0:02:59]} 9... Be7 {[%clk 0:02:51.1]} 10. Bf4
{[%clk 0:02:53.5]} 10... d6 {[%clk 0:02:42.9]} 11. Nb3 {[%clk 0:02:53.3]} 11...
Nc6 {[%clk 0:02:34.4]} 12. Qd2 {[%clk 0:02:50.8]} 12... Rd8 {[%clk 0:02:34.2]}
13. a4 {[%clk 0:02:47.7]} 13... e5 {[%clk 0:02:30.9]} 14. Bg5 {[%clk 0:02:44]}
14... Be6 {[%clk 0:02:31.2]} 15. Nd5 {[%clk 0:02:35.5]} 15... Bxd5 {[%clk
0:02:29]} 16. exd5 {[%clk 0:02:35.1]} 16... Nb8 {[%clk 0:02:29.1]} 17. Ra3
{[%clk 0:01:26]} 17... Nbd7 {[%clk 0:02:21.6]} 18. Rc1 {[%clk 0:01:24.2]} 18...
h6 {[%clk 0:02:18.1]} 19. Be3 {[%clk 0:01:21.2]} 19... b6 {[%clk 0:02:14.3]} 20.
h3 {[%clk 0:01:18.1]} 20... Nc5 {[%clk 0:02:12.7]} 21. Nxc5 {[%clk 0:01:16.1]}
21... bxc5 {[%clk 0:02:13.6]} 22. c4 {[%clk 0:01:05.8]} 22... Rdb8 {[%clk
0:02:11]} 23. g4 {[%clk 0:01:02.1]} 23... Nh7 {[%clk 0:02:07]} 24. Be4 {[%clk
0:00:58.1]} 24... Ng5 {[%clk 0:02:05.1]} 25. Bg2 {[%clk 0:00:58.3]} 25... e4
{[%clk 0:01:37.5]} 26. Bf4 {[%clk 0:00:49]} 26... Qd7 {[%clk 0:01:24.2]} 27. Kh2
{[%clk 0:00:44.6]} 27... Rb4 {[%clk 0:01:20.9]} 28. Qe2 {[%clk 0:00:44]} 28...
Rab8 {[%clk 0:01:18.1]} 29. Rc2 {[%clk 0:00:42.8]} 29... Bf6 {[%clk 0:01:10.5]}
30. Bxe4 {[%clk 0:00:21.3]} 30... Nxe4 {[%clk 0:01:02]} 31. Qxe4 {[%clk
0:00:22.2]} 31... Rxb2 {[%clk 0:00:56.6]} 32. Rxb2 {[%clk 0:00:22.1]} 32... Rxb2
{[%clk 0:00:57.5]} 33. Rf3 {[%clk 0:00:22.3]} 33... Qe7 {[%clk 0:00:51.3]} 34.
Qf5 {[%clk 0:00:14.4]} 34... a5 {[%clk 0:00:32]} 35. Kg2 {[%clk 0:00:12.6]}
35... Rb8 {[%clk 0:00:27.1]} 36. Bxh6 {[%clk 0:00:12.3]} 36... Bd4 {[%clk
0:00:24.2]} 37. Bg5 {[%clk 0:00:11.9]} 37... f6 {[%clk 0:00:24.8]} 38. Bh4
{[%clk 0:00:12.3]} 38... Re8 {[%clk 0:00:25.1]} 39. Bg3 {[%clk 0:00:12.6]} 39...
Be5 {[%clk 0:00:25.3]} 40. Re3 {[%clk 0:00:12.3]} 40... Qf7 {[%clk 0:00:21.2]}
41. Bxe5 {[%clk 0:00:12.8]} 41... dxe5 {[%clk 0:00:21.3]} 42. Qb1 {[%clk
0:00:12]} 42... Qc7 {[%clk 0:00:17.3]} 43. Qb5 {[%clk 0:00:12.3]} 43... Rb8
{[%clk 0:00:16.9]} 44. Qa6 {[%clk 0:00:12.9]} 44... Rb4 {[%clk 0:00:17.3]} 45.
Qe6+ {[%clk 0:00:12.9]} 45... Kh7 {[%clk 0:00:17.8]} 46. g5 {[%clk 0:00:13.4]}
46... Rxc4 {[%clk 0:00:16]} 47. gxf6 {[%clk 0:00:13.1]} 47... gxf6 {[%clk
0:00:16.9]} 48. Rg3 {[%clk 0:00:11.1]} 48... Rf4 {[%clk 0:00:10.6]} 49. Qg8+
{[%clk 0:00:10.7]} 49... Kh6 {[%clk 0:00:09.9]} 50. Qh8+ {[%clk 0:00:08.9]}
50... Qh7 {[%clk 0:00:09.3]} 51. Qf8+ {[%clk 0:00:09.8]} 51... Kh5 {[%clk
0:00:08.7]} 52. Qe8+ {[%clk 0:00:07.5]} 52... Kh6 {[%clk 0:00:06.5]} 53. Qf8+
{[%clk 0:00:06.6]} 53... Kh5 {[%clk 0:00:07.1]} 54. Re3 {[%clk 0:00:05.7]} 54...
Qg6+ {[%clk 0:00:06.6]} 55. Kf1 {[%clk 0:00:06.2]} 55... Qf5 {[%clk 0:00:06.6]}
56. Qh8+ {[%clk 0:00:05.4]} 56... Kg6 {[%clk 0:00:06.4]} 57. Rg3+ {[%clk
0:00:05.6]} 57... Qg5 {[%clk 0:00:06.8]} 58. Rxg5+ {[%clk 0:00:05.5]} 58... Kxg5
{[%clk 0:00:07.7]} 59. d6 {[%clk 0:00:06.3]} 59... Rd4 {[%clk 0:00:07.6]} 60.
Qg7+ {[%clk 0:00:06.6]} 60... Kf5 {[%clk 0:00:07.8]} 61. d7 {[%clk 0:00:07]}
61... c4 {[%clk 0:00:08]} 62. Qg4+ {[%clk 0:00:06.7]} 62... Rxg4 {[%clk
0:00:06.3]} 63. hxg4+ {[%clk 0:00:07.6]} 63... Kxg4 {[%clk 0:00:06.5]} 64. d8=Q
{[%clk 0:00:08.5]} 64... f5 {[%clk 0:00:05.9]} 65. Qc8 {[%clk 0:00:08.9]} 65...
e4 {[%clk 0:00:05.9]} 66. Qxc4 {[%clk 0:00:08.9]} 66... Kf4 {[%clk 0:00:06.8]}
67. Ke2 {[%clk 0:00:09.2]} 67... Ke5 {[%clk 0:00:07]} 68. Qc5+ {[%clk
0:00:09.8]} 68... Kf4 {[%clk 0:00:07.5]} 69. Qxa5 {[%clk 0:00:10.7]} 69... Kg4
{[%clk 0:00:08.1]} 70. Qc7 {[%clk 0:00:11.3]} 70... f4 {[%clk 0:00:08.5]} 71.
Qg7+ {[%clk 0:00:11.6]} 71... Kf5 {[%clk 0:00:08.8]} 72. Qh7+ {[%clk 0:00:12.5]}
72... Ke5 {[%clk 0:00:08.9]} 73. a5 {[%clk 0:00:12.9]} 73... Kd4 {[%clk
0:00:08.8]} 74. a6 {[%clk 0:00:12.9]} 74... f3+ {[%clk 0:00:09.4]} 75. Kd2
{[%clk 0:00:13.2]} 75... Ke5 {[%clk 0:00:06.6]} 76. a7 {[%clk 0:00:13.1]} 76...
Kf4 {[%clk 0:00:06.9]} 77. a8=Q {[%clk 0:00:13.2]} 77... e3+ {[%clk 0:00:07.2]}
78. fxe3+ {[%clk 0:00:14]} 78... Kg3 {[%clk 0:00:07.7]} 79. Qag8+ {[%clk
0:00:13.9]} 79... Kf2 {[%clk 0:00:08.6]} 80. Qh2+ {[%clk 0:00:13.1]} 80... Kf1
{[%clk 0:00:09.5]} 81. Qgg1# {[%clk 0:00:12.2]} 1-0

[Event "Early-Titled-Tuesday-Blitz-April-02-2024"]
[Site "Chess.com"]
[Date "2024.04.02"]
[Round "1"]
[White "MasterKroket"]
[Black "martinmena"]
[Result "1-0"]
[WhiteElo "2576"]
[BlackElo "2166"]
[TimeControl "180+1"]
[EndTime "8:09:17 PDT"]
[Termination "MasterKroket won by resignation"]

1. e4 {[%clk 0:02:59.3]} 1... c6 {[%clk 0:02:55]} 2. d4 {[%clk 0:02:58.9]} 2...
d5 {[%clk 0:02:55.9]} 3. Nc3 {[%clk 0:02:59.3]} 3... dxe4 {[%clk 0:02:55.4]} 4.
Nxe4 {[%clk 0:02:58.7]} 4... Nd7 {[%clk 0:02:55.5]} 5. Ng5 {[%clk 0:02:56.8]}
5... Ngf6 {[%clk 0:02:53.4]} 6. Bc4 {[%clk 0:02:56.5]} 6... e6 {[%clk
0:02:52.6]} 7. c3 {[%clk 0:02:53.9]} 7... h6 {[%clk 0:02:48.2]} 8. N5f3 {[%clk
0:02:53.8]} 8... Bd6 {[%clk 0:02:44.4]} 9. Ne2 {[%clk 0:02:49.7]} 9... O-O
{[%clk 0:02:39.1]} 10. O-O {[%clk 0:02:49.1]} 10... b6 {[%clk 0:02:24.2]} 11.
Ng3 {[%clk 0:02:43]} 11... c5 {[%clk 0:02:13.8]} 12. a4 {[%clk 0:02:32.9]} 12...
cxd4 {[%clk 0:02:07]} 13. Nxd4 {[%clk 0:02:28.6]} 13... Bb7 {[%clk 0:02:03.2]}
14. Nxe6 {[%clk 0:02:23.1]} 14... fxe6 {[%clk 0:01:43.2]} 15. Bxe6+ {[%clk
0:02:17.9]} 15... Kh8 {[%clk 0:01:42]} 16. Qxd6 {[%clk 0:02:18.5]} 16... Nc5
{[%clk 0:01:40.6]} 17. Qxd8 {[%clk 0:02:14.9]} 17... Raxd8 {[%clk 0:01:41.5]}
18. Bc4 {[%clk 0:02:11.1]} 18... Bd5 {[%clk 0:01:23.9]} 19. Bxd5 {[%clk
0:02:08.8]} 19... Rxd5 {[%clk 0:01:24.8]} 20. Be3 {[%clk 0:02:08.8]} 20... Rfd8
{[%clk 0:01:20.7]} 21. Ne2 {[%clk 0:02:00.7]} 21... Nd3 {[%clk 0:00:51.3]} 22.
b3 {[%clk 0:01:52.2]} 22... Re8 {[%clk 0:00:41.3]} 23. Nf4 {[%clk 0:01:38.8]}
23... Nxf4 {[%clk 0:00:31]} 24. Bxf4 {[%clk 0:01:39.7]} 24... Rd3 {[%clk
0:00:29.1]} 25. Rac1 {[%clk 0:01:37]} 25... Nd5 {[%clk 0:00:24.9]} 26. Bg3
{[%clk 0:01:25.2]} 26... Nxc3 {[%clk 0:00:22.7]} 27. Kh1 {[%clk 0:01:21.2]}
27... Ne2 {[%clk 0:00:20.6]} 28. Rc7 {[%clk 0:01:20.8]} 28... Nxg3+ {[%clk
0:00:18.8]} 29. hxg3 {[%clk 0:01:16.5]} 29... a5 {[%clk 0:00:19.3]} 30. Rb1
{[%clk 0:01:10]} 30... Re2 {[%clk 0:00:17.7]} 31. Kg1 {[%clk 0:01:06.3]} 31...
Rdd2 {[%clk 0:00:18]} 32. Rf7 {[%clk 0:01:06.5]} 32... Rb2 {[%clk 0:00:17.1]}
33. Rc1 {[%clk 0:01:04.6]} 33... Rxb3 {[%clk 0:00:17.4]} 34. Rcc7 {[%clk
0:01:04.8]} 34... Rb1+ {[%clk 0:00:16.2]} 35. Kh2 {[%clk 0:01:05.1]} 35... Re5
{[%clk 0:00:14.2]} 36. g4 {[%clk 0:01:04.6]} 36... Rg5 {[%clk 0:00:14.3]} 37.
Rf4 {[%clk 0:00:56.5]} 37... Rb4 {[%clk 0:00:13.6]} 38. Rxb4 {[%clk 0:00:55.8]}
38... axb4 {[%clk 0:00:14.5]} 39. Rc4 {[%clk 0:00:56.1]} 39... b5 {[%clk
0:00:15]} 40. Rxb4 {[%clk 0:00:56]} 40... bxa4 {[%clk 0:00:15.6]} 41. Rxa4
{[%clk 0:00:56.4]} 41... h5 {[%clk 0:00:16.3]} 42. Kg3 {[%clk 0:00:50.9]} 42...
hxg4 {[%clk 0:00:14.8]} 43. Rxg4 {[%clk 0:00:51.8]} 43... Rf5 {[%clk 0:00:15.3]}
44. Rf4 {[%clk 0:00:50.8]} 44... Ra5 {[%clk 0:00:14.3]} 45. Kg4 {[%clk
0:00:49.1]} 45... Kh7 {[%clk 0:00:13.9]} 46. Rb4 {[%clk 0:00:47.9]} 46... Ra2
{[%clk 0:00:13.7]} 47. Rf4 {[%clk 0:00:44.8]} 47... Kg6 {[%clk 0:00:13.2]} 48.
g3 {[%clk 0:00:44.2]} 48... Rb2 {[%clk 0:00:11.8]} 49. f3 {[%clk 0:00:44.5]}
49... Rb3 {[%clk 0:00:11.4]} 50. Ra4 {[%clk 0:00:44.4]} 50... Kf7 {[%clk
0:00:11.1]} 51. Kf4 {[%clk 0:00:43.4]} 51... Rc3 {[%clk 0:00:10.1]} 52. Ra7+
{[%clk 0:00:42.4]} 52... Kf6 {[%clk 0:00:10]} 53. Ra6+ {[%clk 0:00:43]} 53...
Kf7 {[%clk 0:00:10.2]} 54. Ra5 {[%clk 0:00:42.8]} 54... Rb3 {[%clk 0:00:10.1]}
55. Re5 {[%clk 0:00:42.4]} 55... Rb4+ {[%clk 0:00:09.7]} 56. Re4 {[%clk
0:00:42.4]} 56... Rb3 {[%clk 0:00:10.2]} 57. g4 {[%clk 0:00:42.7]} 57... Ra3
{[%clk 0:00:09.3]} 58. g5 {[%clk 0:00:42.1]} 58... g6 {[%clk 0:00:09.2]} 59. Rb4
{[%clk 0:00:41.6]} 59... Rc3 {[%clk 0:00:09.1]} 60. Rb7+ {[%clk 0:00:39.7]}
60... Kg8 {[%clk 0:00:09]} 61. Ke4 {[%clk 0:00:34.2]} 61... Ra3 {[%clk 0:00:08]}
62. f4 {[%clk 0:00:34.3]} 62... Ra4+ {[%clk 0:00:08.6]} 63. Ke5 {[%clk
0:00:34.6]} 63... Ra5+ {[%clk 0:00:08.6]} 64. Ke4 {[%clk 0:00:33.3]} 64... Ra4+
{[%clk 0:00:08.7]} 65. Kf3 {[%clk 0:00:33.6]} 65... Ra3+ {[%clk 0:00:09.2]} 66.
Kg4 {[%clk 0:00:34.1]} 66... Ra4 {[%clk 0:00:09.8]} 67. Rd7 {[%clk 0:00:34.5]}
67... Kf8 {[%clk 0:00:09.5]} 68. Kf3 {[%clk 0:00:34.2]} 68... Ra3+ {[%clk
0:00:09.3]} 69. Ke4 {[%clk 0:00:34.2]} 69... Ra5 {[%clk 0:00:08]} 70. Rd5 {[%clk
0:00:31.7]} 70... Ra4+ {[%clk 0:00:08.1]} 71. Ke5 {[%clk 0:00:32.2]} 71... Ke7
{[%clk 0:00:08.1]} 72. Rb5 {[%clk 0:00:30.5]} 72... Ra6 {[%clk 0:00:05.9]} 73.
Rb7+ {[%clk 0:00:30]} 73... Kf8 {[%clk 0:00:06]} 74. Rd7 {[%clk 0:00:30.7]}
74... Ra5+ {[%clk 0:00:03.7]} 75. Kf6 {[%clk 0:00:30.5]} 75... Rf5+ {[%clk
0:00:03.7]} 76. Kxg6 {[%clk 0:00:29.7]} 76... Rxf4 {[%clk 0:00:04.3]} 77. Rd8+
{[%clk 0:00:27.5]} 77... Ke7 {[%clk 0:00:04.9]} 78. Rd5 {[%clk 0:00:27.5]} 78...
Rg4 {[%clk 0:00:05.2]} 79. Rf5 {[%clk 0:00:26.8]} 79... Rg1 {[%clk 0:00:05.2]}
80. Kh6 {[%clk 0:00:26.4]} 80... Rh1+ {[%clk 0:00:05.3]} 81. Kg7 {[%clk
0:00:26.5]} 81... Ke6 {[%clk 0:00:05.7]} 82. Rf2 {[%clk 0:00:26.2]} 82... Rg1
{[%clk 0:00:05.6]} 83. g6 {[%clk 0:00:26.7]} 83... Ke7 {[%clk 0:00:06.2]} 84.
Kh7 {[%clk 0:00:26.3]} 84... Rh1+ {[%clk 0:00:05.9]} 85. Kg8 {[%clk 0:00:26.2]}
85... Rg1 {[%clk 0:00:06.3]} 86. g7 {[%clk 0:00:26.6]} 86... Rg5 {[%clk
0:00:06]} 87. Rf4 {[%clk 0:00:26.8]} 87... Ke8 {[%clk 0:00:05.4]} 88. Re4+
{[%clk 0:00:25.7]} 88... Kd7 {[%clk 0:00:05.6]} 89. Kf7 {[%clk 0:00:26]} 89...
Rf5+ {[%clk 0:00:05.4]} 90. Kg6 {[%clk 0:00:26.3]} 90... Rf2 {[%clk 0:00:05.3]}
91. g8=Q {[%clk 0:00:25.9]} 91... Rg2+ {[%clk 0:00:06.2]} 92. Kf7 {[%clk
0:00:26.1]} 92... Rxg8 {[%clk 0:00:07.1]} 93. Kxg8 {[%clk 0:00:26.3]} 93... Kd6
{[%clk 0:00:08]} 94. Kf7 {[%clk 0:00:26]} 94... Kd5 {[%clk 0:00:08.9]} 95. Re6
{[%clk 0:00:26.3]} 95... Kc5 {[%clk 0:00:08.6]} 96. Kf6 {[%clk 0:00:26.8]} 96...
Kd5 {[%clk 0:00:09.5]} 97. Kf5 {[%clk 0:00:27.4]} 1-0